bitfinex-derivatives/quotes_BNBF0:USTF0_20250810
["timestamp","ask_amount","ask_price","bid_price","bid_amount"]
[1754805951590,0.21403135,813.83,812.97,2.75971933]
[1754805951591,0.21403135,813.83,813.75,1.65049858]
[1754805952190,0.21403135,813.83,813.76,1.65049858]
[1754805953194,0.21403135,813.83,813.79,1.65049858]
[1754805954293,0.21403135,813.83,813.8,1.65049858]
[1754805955193,0.21403135,813.83,813.13,2.75971933]
[1754805955899,0.21403135,813.83,813.21,2.75971933]
[1754805956494,0.21403135,813.83,813.22,2.75971933]
[1754805957698,0.01067124,813.83,813.22,2.75971933]
[1754805957899,0.5,813.99,813.39,2.75971933]
[1754805958200,0.5,813.99,813.95,1.65431317]
[1754805958797,0.5,813.99,813.96,1.65431317]
[1754805960400,0.5,813.99,813.95,1.65431317]
[1754805961000,0.71400042,813.99,813.97,1.65431317]
[1754805961200,0.71400042,813.99,813.98,1.65431317]
[1754805961902,0.71400042,813.99,813.97,1.65431317]
[1754805962102,0.71400042,813.99,813.96,1.65431317]
[1754805962501,0.71400042,813.99,813.97,1.65431317]
[1754805962900,0.71400042,813.99,813.96,1.65431317]
[1754805963099,0.71400042,813.99,813.97,1.65431317]
[1754805964504,0.71400042,813.99,813.96,1.65431317]
[1754805965205,0.71400042,813.99,813.87,1.65431317]
[1754805965401,0.71400042,813.99,813.88,1.65431317]
[1754805966106,0.71400042,813.99,813.87,1.65431317]
[1754805966706,0.71400042,813.99,813.83,1.65431317]
[1754805966906,0.71400042,813.99,813.82,1.65431317]
[1754805967206,0.71400042,813.99,813.83,1.65431317]
[1754805967404,0.71400042,813.99,813.82,1.65431317]
[1754805967606,0.288,813.86,813.75,1.65431317]
[1754805967815,0.288,813.77,813.71,1.65431317]
[1754805968010,0.288,813.86,813.71,1.65431317]
[1754805968406,0.288,813.86,813.7,1.65431317]
[1754805968706,0.5,813.89,813.67,1.65431317]
[1754805969111,0.5,813.89,813.66,1.65431317]
[1754805969611,0.411,813.91,813.66,1.65431317]
[1754805969810,0.299,813.91,813.66,1.65431317]
[1754805970107,0.336,813.82,813.66,1.65431317]
[1754805970311,0.427,813.91,813.66,1.65431317]
[1754805970509,0.332,813.95,813.66,1.65431317]
[1754805970707,0.71400042,813.99,813.68,1.65431317]
[1754805972217,0.288,813.87,813.84,1.10240129]
[1754805972507,0.71400042,813.99,813.84,1.10240129]
[1754805974709,0.71400042,813.99,813.85,1.10240129]
[1754805975208,0.71400042,813.99,812.7,5.06860707]
[1754805975209,0.71400042,813.99,813.93,1.10240129]
[1754805976115,0.5,813.98,813.93,1.10240129]
[1754805976409,0.5,813.98,813.91,1.10240129]
[1754805978116,0.5,813.98,813.93,1.10240129]
[1754805978316,0.5,813.98,813.92,1.10240129]
[1754805978515,0.5,813.98,813.91,1.10240129]
[1754805979414,0.5,813.98,813.9,1.10240129]
[1754805979616,0.71400042,813.99,813.9,1.10240129]
[1754805979916,0.71400042,813.99,813.89,1.10240129]
[1754805980918,0.21400042,813.99,813.89,1.10240129]
[1754805981118,0.21400042,813.99,813.78,1.10240129]
[1754805981617,0.21400042,813.99,813.76,1.10240129]
[1754805982716,0.21400042,813.99,813.56,1.65431317]
[1754805982914,0.21400042,813.99,813.54,1.65431317]
[1754805983512,0.5,813.63,813.54,1.65431317]
[1754805983914,0.5,813.63,813.55,1.65431317]
[1754805984214,0.5,813.63,813.6,1.65431317]
[1754805985517,0.5,813.63,813.61,1.65431317]
[1754805986417,0.5,813.63,813.6,1.65431317]
[1754805987218,0.5,813.63,813.61,1.65431317]
[1754805987418,0.5,813.63,813.6,1.65431317]
[1754805989119,0.5,813.63,813.58,1.65431317]
[1754805989814,0.5,813.63,813.59,1.65431317]
[1754805990217,0.21400042,813.99,813.59,1.65431317]
[1754805991119,0.5,813.71,813.59,1.65431317]
[1754805991717,0.5,813.71,813.63,1.65431317]
[1754805991918,0.5,813.71,813.62,1.65431317]
[1754805992227,0.5,813.71,813.63,1.65431317]
[1754805993220,0.5,813.71,813.64,1.65431317]
[1754805993920,0.5,813.71,813.63,1.65431317]
[1754805994226,0.5,813.71,813.65,1.65431317]
[1754805994625,0.5,813.71,813.64,1.65431317]
[1754805995221,0.5,813.71,813.67,1.65431317]
[1754805996223,0.5,813.71,813.69,1.65431317]
[1754805997229,0.5,813.71,813.7,1.65431317]
[1754805998431,0.5,813.71,813.08,2.75971933]
[1754805999326,0.5,813.71,813.17,2.75971933]
[1754805999830,0.5,813.7,813.16,2.75971933]
[1754806000036,0.352,813.69,813.16,2.75971933]
[1754806000527,0.352,813.69,813.14,2.75971933]
[1754806000732,0.5,813.7,813.14,2.75971933]
[1754806000929,0.5,813.7,813.13,2.75971933]
[1754806001528,0.5,813.7,813.19,2.75971933]
[1754806003633,0.5,813.7,813.04,2.75971933]
[1754806003930,0.5,813.7,813.68,1.65778499]
[1754806004529,0.5,813.7,813.67,1.65778499]
[1754806005332,0.427,813.69,813.68,1.65778499]
[1754806006236,0.427,813.69,813.67,1.65778499]
[1754806009438,0.251,813.69,813.67,1.65778499]
[1754806009636,0.5,813.7,813.66,1.65778499]
[1754806009838,0.5,813.7,812.96,2.75971933]
[1754806010340,0.5,813.7,813.02,2.75971933]
[1754806010638,0.5,813.83,813.02,2.75971933]
[1754806010845,0.5,813.83,813.81,1.65675559]
[1754806011155,0.21400042,813.99,813.15,2.75971933]
[1754806011440,0.21400042,813.99,813.94,1.65639786]
[1754806012443,0.301,813.98,813.94,1.65639786]
[1754806013351,0.21400042,813.99,813.94,1.65639786]
[1754806014541,0.21400042,813.99,813.98,1.65639786]
[1754806014945,0.21400042,813.99,813.98,1.25939786]
[1754806015145,0.21400042,813.99,813.33,2.75971933]
[1754806015446,0.21400042,813.99,813.22,2.75971933]
[1754806015944,0.21400042,813.99,813.28,2.75971933]
[1754806017944,0.21400042,813.99,813.27,2.75971933]
[1754806018648,0.21400042,813.99,813.26,2.75971933]
[1754806019652,0.21400042,813.99,813.29,2.75971933]
[1754806020153,0.21400042,813.99,813.36,2.75971933]
[1754806021149,0.21400042,813.99,813.38,2.75971933]
[1754806021653,0.21400042,813.99,813.44,2.75971933]
[1754806021950,0.5,814.28,813.44,2.75971933]
[1754806022256,0.5,814.28,813.48,2.75971933]
[1754806022554,0.5,814.28,814.27,1.10275292]
[1754806022950,0.5,814.28,814.26,1.10275292]
[1754806023253,0.5,814.28,814.25,1.10275292]
[1754806023649,0.5,814.28,814.26,1.10275292]
[1754806024049,0.5,814.3,813.46,2.75971933]
[1754806024250,0.5,814.39,813.47,1.04924814]
[1754806024450,0.5,814.39,814.31,1.10157806]
[1754806024950,0.5,814.39,814.28,1.10157806]
[1754806025156,0.21389783,814.38,813.4,2.75971933]
[1754806025354,0.21389783,814.38,814.36,1.1011222]
[1754806025554,0.21389783,814.38,814.37,1.1011222]
[1754806026350,0.21389783,814.38,814.36,1.1011222]
[1754806026555,0.21389783,814.38,814.35,1.1011222]
[1754806027356,0.21389783,814.38,814.34,1.1011222]
[1754806027751,0.21389783,814.38,814.36,1.1011222]
[1754806028355,0.21389783,814.38,814.35,1.1011222]
[1754806029360,0.21389783,814.38,814.34,1.1011222]
[1754806029953,0.21389783,814.38,814.36,1.1011222]
[1754806030353,0.21389783,814.38,814.35,1.1011222]
[1754806030856,0.21389783,814.38,813.58,2.75971933]
[1754806031055,0.21389783,814.38,813.7,2.75971933]
[1754806031558,0.21389783,814.38,813.69,2.75971933]
[1754806032354,0.21389783,814.38,814.34,1.09869448]
[1754806034358,0.21389783,814.38,814.33,1.09869448]
[1754806034561,0.21389783,814.38,814.32,1.09869448]
[1754806035059,0.21389783,814.38,814.15,1.64728214]
[1754806035265,0.21389783,814.38,813.57,2.75971933]
[1754806035266,0.21389783,814.38,814.12,1.64728214]
[1754806035457,0.21389783,814.38,814.08,1.64728214]
[1754806035759,0.295,814.33,814.07,1.64728214]
[1754806036561,0.295,814.33,814.06,1.64728214]
[1754806036857,0.295,814.33,814.05,1.64728214]
[1754806037256,0.471,814.33,814.05,1.64728214]
[1754806037560,0.363,814.33,814.04,1.64728214]
[1754806038062,0.363,814.33,814.02,1.64728214]
[1754806038262,0.363,814.33,814.04,1.64728214]
[1754806038462,0.363,814.33,814.03,1.64728214]
[1754806038759,0.363,814.33,814.04,1.64728214]
[1754806039060,0.363,814.33,814.03,1.64728214]
[1754806040464,0.363,814.33,813.97,1.64728214]
[1754806042165,0.363,814.33,813.96,1.64728214]
[1754806042464,0.363,814.33,813.97,1.64728214]
[1754806043165,0.5,814.2,813.89,1.64728214]
[1754806043366,0.5,814.16,813.92,1.64728214]
[1754806043666,0.5,814.16,813.91,1.64728214]
[1754806044066,0.5,814.16,813.89,1.64728214]
[1754806044467,0.5,814.16,813.87,1.64728214]
[1754806044768,0.5,814.16,813.86,1.64728214]
[1754806044963,0.363,814.12,813.8,1.64728214]
[1754806045168,0.5,814.03,813.61,1.64728214]
[1754806046268,0.251,814.01,813.6,1.64728214]
[1754806047968,0.251,814.01,813.61,1.64728214]
[1754806048864,0.251,814.01,813.6,1.64728214]
[1754806049367,0.251,814.01,812.75,1.454]
[1754806049368,0.251,814.01,813.58,1.64728214]
[1754806049668,0.251,814.01,813.57,1.64728214]
[1754806050067,0.251,814.01,813.56,1.64728214]
[1754806052168,0.359,814.01,813.56,1.64728214]
[1754806052368,0.359,814.01,813.57,1.64728214]
[1754806053066,0.359,814.01,813.58,1.64728214]
[1754806053969,0.21389783,814.38,813.58,1.64728214]
[1754806053970,0.28,814.0,813.58,1.64728214]
[1754806054171,0.359,814.01,813.58,1.64728214]
[1754806054969,0.359,814.01,813.71,1.64728214]
[1754806055166,0.359,814.01,813.69,1.64728214]
[1754806055366,0.359,814.01,813.65,1.64728214]
[1754806056772,0.359,814.01,813.66,1.64728214]
[1754806057773,0.359,814.01,813.63,1.64728214]
[1754806057970,0.251,814.01,813.63,1.64728214]
[1754806058569,0.251,814.01,813.64,1.64728214]
[1754806058770,0.362,814.01,813.67,1.64728214]
[1754806059269,0.362,814.01,813.45,1.64728214]
[1754806059471,0.251,814.01,813.47,1.64728214]
[1754806060472,0.251,814.01,812.75,1.454]
[1754806060473,0.251,814.01,813.48,1.64728214]
[1754806061576,0.251,814.01,813.49,1.64728214]
[1754806062376,0.251,814.01,813.5,1.64728214]
[1754806062576,0.5,814.03,813.5,1.64728214]
[1754806063375,0.5,814.03,813.51,1.64728214]
[1754806064473,0.5,814.03,813.52,1.64728214]
[1754806064876,0.5,814.16,813.55,1.64728214]
[1754806065076,0.5,814.16,813.8,1.10012279]
[1754806065272,0.5,814.16,813.86,1.10012279]
[1754806065575,0.5,814.16,813.87,1.10012279]
[1754806066472,0.5,814.16,813.88,1.10012279]
[1754806067379,0.5,814.16,813.89,1.10012279]
[1754806067774,0.5,814.16,813.9,1.10012279]
[1754806068475,0.5,814.16,812.75,1.454]
[1754806068476,0.5,814.16,813.91,1.10012279]
[1754806069179,0.5,814.16,814.07,1.10012279]
[1754806069375,0.5,814.16,814.06,1.10012279]
[1754806069674,0.423,814.11,814.04,1.10012279]
[1754806070277,0.423,814.11,814.02,1.10012279]
[1754806070480,0.423,814.11,812.77,3.86360707]
[1754806070481,0.423,814.11,814.03,1.10012279]
[1754806072483,0.359,814.11,814.03,1.10012279]
[1754806073780,0.28,814.08,814.05,1.10012279]
[1754806073982,0.5,814.16,813.93,1.64728214]
[1754806074184,0.5,814.16,814.1,1.10219989]
[1754806075285,0.5,814.16,813.93,1.64728214]
[1754806075286,0.5,814.16,814.08,1.10219989]
[1754806075785,0.5,814.16,814.09,1.10219989]
[1754806077285,0.5,814.16,814.1,1.10219989]
[1754806077480,0.5,814.16,814.08,1.10219989]
[1754806079488,0.5,814.16,814.1,1.10219989]
[1754806080191,0.5,814.16,814.12,1.10219989]
[1754806080394,0.5,814.16,814.13,1.10219989]
[1754806080593,0.5,814.16,814.04,1.64728214]
[1754806080789,0.5,814.16,814.1,1.64728214]
[1754806081190,0.5,814.16,814.12,1.64728214]
[1754806083494,0.5,814.16,814.08,1.64728214]
[1754806085296,0.5,814.16,814.07,1.64728214]
[1754806085496,0.286,814.1,814.07,1.64728214]
[1754806085699,0.5,814.16,814.07,1.64728214]
[1754806086695,0.286,814.09,814.01,1.64728214]
[1754806086899,0.286,814.02,813.95,1.64728214]
[1754806087100,0.5,814.13,813.95,1.64728214]
[1754806087303,0.5,814.13,814.12,1.10268223]
[1754806087501,0.5,814.13,814.08,1.10268223]
[1754806088202,0.5,814.13,814.02,1.10268223]
[1754806089001,0.5,814.13,814.03,1.10268223]
[1754806090200,0.21389783,814.38,814.02,0.79968223]
[1754806090397,0.21389783,814.38,813.84,1.64728214]
[1754806091000,0.298,814.06,813.84,1.64728214]
[1754806091903,0.298,814.06,813.87,1.64728214]
[1754806092403,0.5,813.97,813.88,1.64728214]
[1754806093299,0.5,813.97,813.18,2.75971933]
[1754806093300,0.5,813.97,813.89,1.64728214]
[1754806093500,0.5,813.97,813.95,1.64728214]
[1754806093704,0.5,813.97,813.93,1.64728214]
[1754806093905,0.5,814.0,813.93,1.64728214]
[1754806094202,0.5,814.0,813.9,1.64728214]
[1754806094404,0.5,813.96,813.86,1.64728214]
[1754806094606,0.5,813.96,813.81,1.64728214]
[1754806094901,0.5,813.94,813.81,1.64728214]
[1754806095300,0.5,813.94,813.83,1.64728214]
[1754806095805,0.251,813.88,813.64,1.64728214]
[1754806096304,0.251,813.88,812.86,2.75971933]
[1754806096305,0.251,813.88,813.65,1.64728214]
[1754806096805,0.251,813.88,813.64,1.64728214]
[1754806097105,0.251,813.88,813.63,1.64728214]
[1754806097500,0.251,813.88,812.47,3.86360707]
[1754806097501,0.251,813.88,813.64,1.64728214]
[1754806098302,0.288,813.86,813.58,1.64728214]
[1754806098501,0.363,813.88,813.58,1.64728214]
[1754806098705,0.288,813.85,813.58,1.64728214]
[1754806098905,0.5,813.94,813.64,1.64728214]
[1754806099208,0.5,813.94,813.71,1.64728214]
[1754806099406,0.5,813.94,813.72,1.64728214]
[1754806101106,0.5,813.94,813.74,1.64728214]
[1754806101504,0.5,813.94,813.75,1.64728214]
[1754806102307,0.5,813.94,813.76,1.64728214]
[1754806103309,0.5,813.94,813.77,1.64728214]
[1754806104009,0.5,813.94,813.93,1.64728214]
[1754806104508,0.5,813.94,813.28,2.75971933]
[1754806104908,0.5,813.94,813.29,2.75971933]
[1754806105308,0.5,813.94,813.88,1.65828313]
[1754806106107,0.5,813.94,813.87,1.65828313]
[1754806106305,0.288,813.93,813.87,1.65828313]
[1754806106509,0.5,813.94,813.87,1.65828313]
[1754806106709,0.5,813.91,813.78,1.65828313]
[1754806107112,0.5,813.91,813.65,1.65828313]
[1754806107407,0.5,813.71,813.64,1.65828313]
[1754806108313,0.5,813.71,813.63,1.65828313]
[1754806109508,0.5,813.71,813.62,1.65828313]
[1754806109709,0.5,813.72,813.67,1.65828313]
[1754806109908,0.5,813.77,813.67,1.65828313]
[1754806110207,0.5,813.84,813.67,1.65828313]
[1754806110909,0.5,813.86,813.75,1.65828313]
[1754806112410,0.5,813.86,813.74,1.65828313]
[1754806113013,0.21389783,814.38,813.12,2.75971933]
[1754806113014,0.5,813.88,813.8,1.65828313]
[1754806113215,0.5,813.96,813.8,1.65828313]
[1754806114716,0.5,813.96,813.79,1.65828313]
[1754806115215,0.5,813.96,813.87,1.65828313]
[1754806116214,0.5,813.96,813.91,1.65828313]
[1754806116417,0.5,813.96,813.9,1.65828313]
[1754806118917,0.5,813.96,813.86,1.65828313]
[1754806119616,0.5,813.96,813.83,1.65828313]
[1754806121724,0.5,813.96,813.87,1.65828313]
[1754806122323,0.5,814.1,813.93,1.65828313]
[1754806122523,0.283,814.14,813.97,1.65828313]
[1754806122724,0.5,814.15,813.97,1.65828313]
[1754806123127,0.5,814.15,814.03,1.65828313]
[1754806123327,0.5,814.16,814.09,1.65828313]
[1754806124128,0.28,814.13,814.01,1.65828313]
[1754806124323,0.5,814.16,814.01,1.65828313]
[1754806124628,0.5,814.16,814.0,1.65828313]
[1754806125027,0.5,814.16,814.01,1.65828313]
[1754806125223,0.5,814.16,813.99,1.65828313]
[1754806125428,0.5,814.16,813.98,1.65828313]
[1754806126525,0.344,814.11,813.98,1.65828313]
[1754806126728,0.28,814.08,813.94,1.65828313]
[1754806127028,0.28,814.03,813.94,1.65828313]
[1754806127229,0.5,814.16,813.94,1.65828313]
[1754806127428,0.5,814.16,814.12,1.10373603]
[1754806128928,0.5,814.22,814.12,1.10373603]
[1754806129125,0.5,814.18,814.12,1.10373603]
[1754806129628,0.5,814.18,814.14,1.10373603]
[1754806132231,0.5,814.18,814.16,1.10373603]
[1754806132830,0.5,814.18,814.15,1.10373603]
[1754806133029,0.5,814.18,814.16,1.10373603]
[1754806134032,0.5,814.18,814.1,1.65828313]
[1754806134332,0.5,814.18,814.11,1.65828313]
[1754806134632,0.5,814.18,813.87,1.65828313]
[1754806135035,0.5,814.18,813.85,1.65828313]
[1754806135331,0.5,814.18,813.84,1.65828313]
[1754806135833,0.5,814.18,813.83,1.65828313]
[1754806136633,0.5,814.18,813.84,1.65828313]
[1754806137831,0.5,814.18,814.0,1.65828313]
[1754806139430,0.5,814.18,813.97,1.65828313]
[1754806140633,0.5,814.18,813.98,1.65828313]
[1754806141238,0.5,814.18,813.99,1.65828313]
[1754806141936,0.5,814.18,814.0,1.65828313]
[1754806142332,0.5,814.18,813.99,1.65828313]
[1754806142537,0.5,814.18,813.96,1.65828313]
[1754806142737,0.5,814.18,813.95,1.65828313]
[1754806143834,0.5,814.18,813.96,1.65828313]
[1754806144238,0.5,814.18,813.95,1.65828313]
[1754806144439,0.5,814.18,813.96,1.65828313]
[1754806145240,0.5,814.18,813.97,1.65828313]
[1754806145737,0.5,814.18,813.96,1.65828313]
[1754806145938,0.5,814.18,813.97,1.65828313]
[1754806147846,0.5,814.18,813.98,1.65828313]
[1754806149445,0.5,814.18,814.0,1.65828313]
[1754806150345,0.5,814.18,813.99,1.65828313]
[1754806150546,0.5,814.18,814.0,1.65828313]
[1754806151041,0.5,814.18,814.01,1.65828313]
[1754806151546,0.5,814.18,813.99,1.65828313]
[1754806152545,0.5,814.09,813.55,1.65828313]
[1754806152741,0.5,814.09,813.54,1.65828313]
[1754806152941,0.5,814.04,813.55,1.65828313]
[1754806154146,0.5,814.04,813.54,1.65828313]
[1754806155345,0.5,814.04,813.47,1.65828313]
[1754806156550,0.5,814.22,813.7,1.65828313]
[1754806156749,0.5,814.22,813.81,1.65828313]
[1754806157551,0.28,814.17,813.81,1.65828313]
[1754806157750,0.5,814.22,813.81,1.65828313]
[1754806157951,0.5,814.22,813.82,1.65828313]
[1754806158246,0.5,814.22,813.81,1.65828313]
[1754806159552,0.5,814.22,813.94,1.65828313]
[1754806161555,0.5,814.22,813.96,1.65828313]
[1754806162248,0.28,814.21,813.96,1.65828313]
[1754806162452,0.5,814.22,813.96,1.65828313]
[1754806162749,0.28,814.21,813.96,1.65828313]
[1754806162954,0.5,814.22,813.96,1.65828313]
[1754806163249,0.5,814.22,813.95,1.65828313]
[1754806164058,0.5,814.22,814.14,1.10302151]
[1754806164755,0.5,814.22,814.13,1.10302151]
[1754806165458,0.5,814.22,814.21,1.10302151]
[1754806166458,0.5,814.22,814.05,1.65828313]
[1754806167560,0.281,814.16,814.06,1.65828313]
[1754806167860,0.5,814.22,814.06,1.65828313]
[1754806168458,0.5,814.22,813.35,2.75971933]
[1754806168459,0.5,814.22,814.07,1.65828313]
[1754806169457,0.5,814.22,814.08,1.65828313]
[1754806169862,0.5,814.22,814.09,1.65828313]
[1754806170057,0.5,814.22,814.08,1.65828313]
[1754806170263,0.5,814.22,814.09,1.65828313]
[1754806171366,0.5,814.22,814.18,1.65828313]
[1754806171562,0.5,814.22,814.19,1.65828313]
[1754806172162,0.5,814.22,814.18,1.65828313]
[1754806172467,0.5,814.22,814.19,1.65828313]
[1754806172963,0.5,814.22,813.6,2.75971933]
[1754806173263,0.5,814.22,814.2,1.65604718]
[1754806173663,0.5,814.22,814.21,1.65604718]
[1754806174166,0.5,814.32,813.62,2.75971933]
[1754806174367,0.5,814.32,814.25,1.65575516]
[1754806174563,0.5,814.32,814.27,1.65575516]
[1754806175963,0.5,814.32,814.28,1.65575516]
[1754806178564,0.5,814.32,814.3,1.65575516]
[1754806178765,0.5,814.32,814.29,1.65575516]
[1754806178969,0.5,814.32,814.3,1.65575516]
[1754806179170,0.5,814.32,814.29,1.65575516]
[1754806179368,0.5,814.32,814.3,1.65575516]
[1754806179666,0.21389783,814.38,813.67,2.75971933]
[1754806179871,0.21389783,814.38,814.32,1.65576572]
[1754806180366,0.21389783,814.38,814.33,1.65576572]
[1754806181272,0.286,814.37,814.32,1.65576572]
[1754806181468,0.21389783,814.38,814.31,1.65576572]
[1754806182570,0.21389783,814.38,814.29,1.65576572]
[1754806183271,0.21389783,814.38,814.28,1.65576572]
[1754806184477,0.251,814.37,814.23,1.65576572]
[1754806184676,0.362,814.37,814.23,1.65576572]
[1754806184876,0.251,814.37,814.23,1.65576572]
[1754806185375,0.362,814.37,814.22,1.65576572]
[1754806185876,0.251,814.37,814.22,1.65576572]
[1754806186473,0.362,814.37,814.22,1.65576572]
[1754806186678,0.251,814.37,814.22,1.65576572]
[1754806186878,0.5,814.27,814.15,1.65576572]
[1754806187078,0.251,814.25,814.09,1.65576572]
[1754806187281,0.358,814.25,814.09,1.65576572]
[1754806188077,0.251,814.25,814.09,1.65576572]
[1754806190875,0.251,814.25,814.1,1.65576572]
[1754806192580,0.251,814.25,814.11,1.65576572]
[1754806193281,0.251,814.25,814.12,1.65576572]
[1754806193881,0.358,814.25,814.12,1.65576572]
[1754806194080,0.251,814.25,814.12,1.65576572]
[1754806194380,0.251,814.25,814.14,1.65576572]
[1754806195281,0.251,814.25,814.08,1.65576572]
[1754806196682,0.251,814.25,814.19,1.65576572]
[1754806196881,0.251,814.25,814.2,1.65576572]
[1754806197078,0.251,814.25,814.21,1.65576572]
[1754806197482,0.362,814.25,814.21,1.65576572]
[1754806197679,0.251,814.25,814.2,1.65576572]
[1754806198885,0.251,814.25,814.21,1.65576572]
[1754806199085,0.251,814.25,814.22,1.65576572]
[1754806201284,0.251,814.25,814.23,1.65576572]
[1754806201687,0.251,814.25,814.21,1.65576572]
[1754806201986,0.251,814.25,814.14,1.65576572]
[1754806202186,0.251,814.25,814.13,1.65576572]
[1754806202385,0.5,814.27,814.13,1.65576572]
[1754806202582,0.5,814.27,814.12,1.65576572]
[1754806202983,0.5,814.27,813.48,2.75971933]
[1754806202984,0.5,814.27,814.11,1.65576572]
[1754806203286,0.5,814.27,814.12,1.65576572]
[1754806203488,0.5,814.27,814.11,1.65576572]
[1754806203987,0.394,814.26,814.11,1.65576572]
[1754806204286,0.5,814.25,814.1,1.65576572]
[1754806204487,0.5,814.25,814.09,1.65576572]
[1754806204988,0.318,814.17,814.15,1.10328541]
[1754806205191,0.318,814.17,814.03,1.65576572]
[1754806205391,0.362,814.15,813.99,1.65576572]
[1754806205592,0.286,814.06,813.97,1.65576572]
[1754806205793,0.318,814.06,813.96,1.65576572]
[1754806205988,0.5,814.07,813.94,1.65576572]
[1754806206294,0.5,814.09,813.94,1.65576572]
[1754806206593,0.5,814.09,813.98,1.65576572]
[1754806206890,0.5,814.09,813.99,1.65576572]
[1754806208397,0.5,814.09,813.98,1.65576572]
[1754806208692,0.5,814.09,813.97,1.10429217]
[1754806208891,0.21389783,814.38,813.77,1.65576572]
[1754806209095,0.21389783,814.38,813.83,1.65576572]
[1754806209297,0.21389783,814.38,813.8,1.65576572]
[1754806209595,0.286,813.86,813.79,1.65576572]
[1754806209790,0.5,813.95,813.79,1.65576572]
[1754806209995,0.286,813.85,813.79,1.65576572]
[1754806210292,0.5,813.95,813.78,1.65576572]
[1754806210895,0.5,813.95,813.79,1.65576572]
[1754806211095,0.362,813.87,813.79,1.65576572]
[1754806211299,0.362,813.87,813.78,1.65576572]
[1754806211700,0.362,813.87,813.79,1.65576572]
[1754806211901,0.362,813.87,813.81,1.65576572]
[1754806212100,0.362,813.87,813.8,1.65576572]
[1754806212396,0.362,813.87,813.79,1.65576572]
[1754806212801,0.362,813.87,813.75,1.65576572]
[1754806214401,0.362,813.87,813.76,1.65576572]
[1754806215203,0.362,813.87,813.75,1.65576572]
[1754806215403,0.362,813.87,813.09,2.75971933]
[1754806215404,0.298,813.87,813.77,1.65576572]
[1754806216099,0.298,813.87,813.78,1.65576572]
[1754806216303,0.298,813.87,813.77,1.65576572]
[1754806216501,0.298,813.87,813.76,1.65576572]
[1754806217303,0.5,813.89,813.75,1.65576572]
[1754806217502,0.295,813.87,813.75,1.65576572]
[1754806217701,0.5,813.89,813.75,1.65576572]
[1754806219305,0.5,813.89,813.74,1.65576572]
[1754806219606,0.5,813.89,813.75,1.65576572]
[1754806220303,0.5,813.89,813.74,1.65576572]
[1754806221604,0.5,813.89,813.75,1.65576572]
[1754806222103,0.5,814.08,813.79,1.65576572]
[1754806222307,0.5,814.08,813.83,1.65576572]
[1754806222504,0.5,814.15,813.87,1.65576572]
[1754806223204,0.5,814.15,813.85,1.65576572]
[1754806223404,0.5,814.2,813.89,1.65576572]
[1754806223605,0.5,814.2,813.88,1.65576572]
[1754806224612,0.28,814.16,813.89,1.65576572]
[1754806224907,0.5,814.2,813.89,1.65576572]
[1754806225307,0.21394648,814.1,813.87,1.65576572]
[1754806229010,0.21394648,814.1,813.94,1.65576572]
[1754806229810,0.21394648,814.1,813.95,1.65576572]
[1754806230110,0.21394648,814.1,813.96,1.65576572]
[1754806231114,0.21394648,814.1,813.97,1.65576572]
[1754806231409,0.21394648,814.1,814.01,1.65576572]
[1754806233209,0.21394648,814.1,814.04,1.65576572]
[1754806233610,0.21394648,814.1,814.05,1.65576572]
[1754806234110,0.21394648,814.1,814.04,1.65576572]
[1754806234315,0.21394648,814.1,814.05,1.65576572]
[1754806235316,0.21394648,814.1,814.04,1.65576572]
[1754806236213,0.21394648,814.1,814.05,1.65576572]
[1754806240218,0.21394648,814.1,814.06,1.65576572]
[1754806240415,0.21394648,814.1,814.04,1.65576572]
[1754806241019,0.21394648,814.1,814.05,1.65576572]
[1754806241921,0.21394648,814.1,814.06,1.65576572]
[1754806244423,0.21394648,814.1,814.07,1.65576572]